Workbook

Sheet MSU
B1: Kari Martikainen | E1: 30.6.1967
B2: SUPERPESIS | E2: Runkosarja | I2: Kärkilyönnit (KL), pesänvälit | P2: Runkosarja TOP-30 | U2: Ylempi loppusarja | AB2: Ylempi loppusarja TOP-10 | AG2: Play off, voitot, voittoprosentti | AL2: Arvo-ottelut | AP2: Mitalit
B3: Vuosi | C3: Sija | D3: Seura | E3: OTT | F3: KUN | G3: LÖI | H3: TOI | I3: KL | J3: 0 > 1 | K3: 1 > 2 | L3: 2 > 3 | M3: 3 > k | N3: KL-% | P3: LÖI | Q3: TOI | R3: L+T | S3: KL | U3: OTT | V3: KUN | W3: LÖI | X3: TOI | Y3: KL | Z3: KL-% | AB3: LÖI | AC3: TOI | AD3: L+T | AE3: KL | AG3: Puolivälierät | AH3: Välierät | AI3: Pronssi | AJ3: Finaalit | AL3: IL | AM3: LL | AN3: Cup | AO3: K | AP3: H | AQ3: P
B4: 1984 | C4: 5. | D4: Mahti | F4: suomensarja
B5: 1985 | C5: 3. | D5: Mahti | F5: suomensarja
B6: 1986 | C6: 3. | D6: Mahti | F6: suomensarja
B7: 1987 | C7: 5. | D7: Mahti | F7: suomensarja
B8: 1988 | C8: 12. | D8: Mahti | F8: suomensarja
B9: 1989 | C9: 4. | D9: Mahti | F9: maakuntasarja
B10: 1990 | C10: 8. | D10: SiiPe | E10: 26 | F10: 2 | G10: 20 | H10: 18 | I10: 94 | J10: 18 | K10: 30 | L10: 24 | M10: 22 | N10: 48.5 % | P10: 23. | R10: 29. | U10: 3 | V10: 0 | W10: 7 | X10: 2 | Y10: 16 | Z10: 57.1 % | AB10: 9. | AG10: 1-2 SoJy
B11: 1991 | C11: 3. | D11: Mahti | F11: suomensarja
B12: 1992 | C12: 6. | D12: SiiPe 2 | F12: suomensarja
B13: 1993 | C13: 14. | D13: SiiPe | E13: 28 | F13: 1 | G13: 10 | H13: 23 | I13: 160 | J13: 44 | K13: 69 | L13: 36 | M13: 11 | N13: 64.0 % | S13: 19.
B14: 1994 | C14: 4. | D14: SiiPe | F14: ykköspesis
B15: 1995 | C15: 9. | D15: SiiPe | E15: 29 | F15: 0 | G15: 5 | H15: 19 | I15: 116 | J15: 19 | K15: 45 | L15: 47 | M15: 5 | N15: 62.0 %
B16: 1996 | C16: 12. | D16: Mahti | F16: ykköspesis
B17: 1997 | C17: 8. | D17: SiiPe | E17: 28 | F17: 1 | G17: 8 | H17: 8 | I17: 60 | J17: 16 | K17: 26 | L17: 9 | M17: 9 | N17: 36.6 % | U17: 3 | V17: 0 | W17: 0 | X17: 0 | Y17: 6 | Z17: 40.0 % | AG17: 0-3 KiPa
B18: Yhteensä | E18: 111 | F18: 4 | G18: 43 | H18: 68 | I18: 430 | J18: 97 | K18: 170 | L18: 116 | M18: 47 | N18: 54.2 % | P18: 0-0-0 | Q18: 0-0-0 | R18: 0-0-0 | S18: 0-0-0 | U18: 6 | V18: 0 | W18: 7 | X18: 2 | Y18: 22 | Z18: 51.2 % | AA18: =SUM(AA10:AA17) -> 0.0 % | AB18: 0-0-0 | AC18: 0-0-0 | AD18: 0-0-0 | AE18: 0-0-0 | AG18: 0/2 | AH18: 0/0 | AI18: 0/0 | AJ18: 0/0 | AL18: 0 | AM18: 0 | AN18: 0 | AO18: 0 | AP18: 0 | AQ18: 0
AG19: 0.0 % | AH19: 0.0 % | AI19: 0.0 % | AJ19: 0.0 %
B20: Pesispörssi | D20: 279.7
B22: URA SUPERISSA | E22: OTT | F22: KUN | G22: LÖI | H22: TOI | I22: KL | K22: ka/L | L22: ka/T | M22: ka/KL | N22: KL-% | P22: ENSIMMÄISET RUNKOSARJASSA | AG22: ENSIMMÄISET PUDOTUSPELEISSÄ | AL22: YLEISÖ
B23: Runkosarja | E23: 111 | F23: 4 | G23: 43 | H23: 68 | I23: 430 | K23: 0.42 | L23: 0.61 | M23: 3.87 | N23: 54.1 % | P23: Ottelu | R23: 06.05. 1990 SiiPe - SMJ 11-2 | X23: 1. ottelu | Z23: 22 v 10 kk 6 pv | AG23: Ottelu | AH23: 1. 15.08. 1990 SoJy - SiiPe 7-12 | AL23: 3281 | AN23: 23 v 1 kk 15 pv
B24: Ylempi loppusarja | E24: 6 | F24: 0 | G24: 7 | H24: 2 | I24: 22 | K24: 1.17 | L24: 0.33 | M24: 3.67 | N24: 51.2 % | P24: Lyöty | R24: 06.05. 1990 SiiPe - SMJ 11-2 | X24: 1. ottelu | Z24: 22 v 10 kk 6 pv | AG24: Lyöty | AH24: 1. 15.08. 1990 SoJy - SiiPe 7-12 | AL24: 3281 | AN24: 23 v 1 kk 15 pv
B25: Alempi loppusarja | E25: 18 | F25: 1 | G25: 6 | H25: 21 | I25: 80 | K25: 0.39 | L25: 1.17 | M25: 4.44 | N25: 69.6 % | P25: Tuotu | R25: 06.05. 1990 SiiPe - SMJ 11-2 | X25: 1. ottelu | Z25: 22 v 10 kk 6 pv | AG25: Tuotu | AH25: 1. 15.08. 1990 SoJy - SiiPe 7-12 | AL25: 3281 | AN25: 23 v 1 kk 15 pv
B26: KAIKKI | E26: 135 | F26: 5 | G26: 56 | H26: 91 | I26: 532 | K26: 0.45 | L26: 0.67 | M26: 3.94 | N26: 55.8 % | P26: Kunnari | R26: 06.05. 1990 SiiPe - SMJ 11-2 | X26: 1. ottelu | Z26: 22 v 10 kk 6 pv | AG26: Kunnari
B28: Seurat | D28: SiiPe = Siilinjärven Pesis (1987)
D29: Mahti = Maaningan Mahti (1973)

Sheet MYP, MSS
B1: Kari Martikainen | E1: 30.6.1967
B2: YKKÖSPESIS | E2: Runkosarja | L2: Runkosarja TOP-10 | Q2: Jatkosarjat | X2: SUOMENSARJA | AA2: Runkosarja | AH2: Runkosarja TOP-10 | AM2: Jatkosarjat
B3: Vuosi | C3: Sija | D3: Seura | E3: OTT | F3: KUN | G3: LÖI | H3: TOI | I3: KL | J3: KL-% | L3: LÖI | M3: TOI | N3: L+T | O3: KL | Q3: OTT | R3: KUN | S3: LÖI | T3: TOI | U3: KL | V3: KL-% | X3: Vuosi | Y3: Sija | Z3: Seura | AA3: OTT | AB3: KUN | AC3: LÖI | AD3: TOI | AE3: KL | AF3: KL-% | AH3: LÖI | AI3: TOI | AJ3: L+T | AK3: KL | AM3: OTT | AN3: KUN | AO3: LÖI | AP3: TOI | AQ3: KL | AR3: KL-%
X4: 1984 | Y4: 5. | Z4: Mahti | AA4: 9 | AB4: 0 | AC4: 5 | AD4: 6
X5: 1985 | Y5: 3. | Z5: Mahti | AA5: 18 | AB5: 0 | AC5: 21 | AD5: 11
X6: 1986 | Y6: 3. | Z6: Mahti | AA6: 22 | AB6: 0 | AC6: 27 | AD6: 11
X7: 1987 | Y7: 5. | Z7: Mahti | AA7: 18 | AB7: 2 | AC7: 17 | AD7: 16
X8: 1988 | Y8: 12. | Z8: Mahti | AA8: 22 | AB8: 0 | AC8: 12 | AD8: 13
X10: 1991 | Y10: 3. | Z10: Mahti | AA10: 21 | AB10: 1 | AC10: 20 | AD10: 26
X11: 1992 | Y11: 6. | Z11: SiiPe 2 | AA11: 21 | AB11: 1 | AC11: 20 | AD11: 27
B13: 1994 | C13: 4. | D13: SiiPe | E13: 14 | F13: 0 | G13: 11 | H13: 10 | I13: 72
B15: 1996 | C15: 12. | D15: Mahti | E15: 25 | F15: 2 | G15: 6 | H15: 28 | I15: 132
B16: YHTEENSÄ | E16: =SUM(E4:E15) -> 39 | F16: =SUM(F4:F15) -> 2 | G16: =SUM(G4:G15) -> 17 | H16: =SUM(H4:H15) -> 38 | I16: =SUM(I4:I15) -> 204 | J16: 0.0 % | K16: =SUM(K4:K15) -> 0 | Q16: =SUM(Q4:Q15) -> 0 | R16: =SUM(R4:R15) -> 0 | S16: =SUM(S4:S15) -> 0 | T16: =SUM(T4:T15) -> 0 | U16: =SUM(U4:U15) -> 0 | V16: 0.0 % | W16: =SUM(W4:W15) -> 0 | X16: YHTEENSÄ | AA16: =SUM(AA4:AA15) -> 131 | AB16: =SUM(AB4:AB15) -> 4 | AC16: =SUM(AC4:AC15) -> 122 | AD16: =SUM(AD4:AD15) -> 110 | AE16: =SUM(AE4:AE15) -> 0 | AF16: 0.0 % | AG16: =SUM(AG4:AG15) -> 0 | AM16: =SUM(AM4:AM15) -> 0 | AN16: =SUM(AN4:AN15) -> 0 | AO16: =SUM(AO4:AO15) -> 0 | AP16: =SUM(AP4:AP15) -> 0 | AQ16: =SUM(AQ4:AQ15) -> 0 | AR16: 0.0 % | AS16: =SUM(AS4:AS15) -> 0
B18: KAIKKI OTTELUT | E18: OTT | F18: KUN | G18: LÖI | H18: TOI | I18: KL | J18: KL-% | L18: ka/L | M18: ka/T | N18: ka/l+t | O18: ka/kl | R18: Seurat | T18: SiiPe = Siilinjärven Pesis (1987)
B19: SUPERPESIS | E19: 135 | F19: 5 | G19: 56 | H19: 91 | I19: 532 | J19: 55.8 % | K19: =PRODUCT(I19/J19) -> 953.4050179 | L19: =PRODUCT((F19+G19)/E19) -> 0.45 | M19: =PRODUCT(H19/E19) -> 0.67 | N19: =PRODUCT((F19+G19+H19)/E19) -> 1.13 | O19: =PRODUCT(I19/E19) -> 3.94 | T19: Mahti = Maaningan Mahti (1973)
B20: YKKÖSPESIS | E20: =PRODUCT(E16+Q16) -> 39 | F20: =PRODUCT(F16+R16) -> 2 | G20: =PRODUCT(G16+S16) -> 17 | H20: =PRODUCT(H16+T16) -> 38 | I20: =PRODUCT(I16+U16) -> 204 | J20: 0.0 % | K20: =PRODUCT(K16+W16) -> 0 | L20: =PRODUCT((F20+G20)/E20) -> 0.49 | M20: =PRODUCT(H20/E20) -> 0.97 | N20: =PRODUCT((F20+G20+H20)/E20) -> 1.46 | O20: =PRODUCT(I20/E20) -> 5.23
B21: SUOMENSARJA | E21: =PRODUCT(AA16+AM16) -> 131 | F21: =PRODUCT(AB16+AN16) -> 4 | G21: =PRODUCT(AC16+AO16) -> 122 | H21: =PRODUCT(AD16+AP16) -> 110 | I21: =PRODUCT(AE16+AQ16) -> 0 | J21: 0.0 % | K21: =PRODUCT(AG16+AS16) -> 0 | L21: =PRODUCT((F21+G21)/E21) -> 0.96 | M21: =PRODUCT(H21/E21) -> 0.84 | N21: =PRODUCT((F21+G21+H21)/E21) -> 1.80 | O21: =PRODUCT(I21/E21) -> 0.00
B22: YHTEENSÄ | E22: =SUM(E19:E21) -> 305 | F22: =SUM(F19:F21) -> 11 | G22: 195 | H22: 239 | I22: 736 | J22: 0.0 % | K22: =SUM(K19:K21) -> 953.4050179 | L22: =PRODUCT((F22+G22)/E22) -> 0.68 | M22: =PRODUCT(H22/E22) -> 0.78 | N22: =PRODUCT((F22+G22+H22)/E22) -> 1.46 | O22: =PRODUCT(I22/174) -> 4.23

Sheet Arvo-ottelut
B1: ITÄ - LÄNSI - KORTTI
B2: Kari Martikainen | C2: 30.6.1967
B3: B-POJAT | C3: Itä - Länsi, tulos | D3: Joukkue | E3: Seura | G3: V | H3: T | I3: H | J3: Up. | K3: Lj. | L3: Palk. | M3: O | N3: K | O3: L | P3: T | Q3: KL | R3: 1 | S3: 2 | T3: 3 | U3: k | V3: KL-% | W3: Pelinjohtaja | X3: Yleisöä
B4: 14.07. 1984 Lahti | C4: 13-3 | D4: Itä | E4: Mahti | G4: 1 | J4: 3v | K4: 5 | M4: 1 | O4: 1 | Q4: 1/8 | R4: 0/3 | T4: 0/1 | U4: 1/4 | V4: 12.5 % | W4: Aki Pöntinen | X4: 105
B6: A - POJAT | C6: Itä - Länsi, tulos | D6: Joukkue | E6: Seura | G6: V | H6: T | I6: H | J6: Up. | K6: Lj. | L6: Palk. | M6: O | N6: K | O6: L | P6: T | Q6: KL | R6: 1 | S6: 2 | T6: 3 | U6: k | V6: KL-% | W6: Pelinjohtaja | X6: Yleisöä
B7: 19.07. 1985 Kitee | C7: 5-22 | D7: Itä | E7: Mahti | I7: 1 | M7: 1 | W7: Pekka Arffman | X7: 950

Sheet Kärkilyönnit
B1: KÄRKILYÖNNIT RUNKOSARJASSA | V1: VUOSITTAISET SIJOITUKSET TOP - 30
G2: 0 > 1 | J2: 1 > 2 | M2: 2 > 3 | P2: 3 > k | S2: Yhteensä
B3: Vuosi | C3: Sija | D3: Seura | E3: OTT | F3: KL | G3: YHT | H3: % | I3: KL | J3: YHT | K3: % | L3: KL | M3: YHT | N3: % | O3: KL | P3: YHT | Q3: % | R3: KL | S3: YHT | T3: % | V3: Vuosi | W3: Sija | X3: Seura | Y3: 0 > 1 | Z3: 1 > 2 | AA3: 2 > 3 | AB3: 3 > k | AC3: KL
B4: 1990 | C4: 7. | D4: SiiPe | E4: 26 | F4: 18 | G4: 50 | H4: =PRODUCT(F4/G4) -> 36.0 % | I4: 30 | J4: 59 | K4: =PRODUCT(I4/J4) -> 50.8 % | L4: 24 | M4: 42 | N4: =PRODUCT(L4/M4) -> 57.1 % | O4: 22 | P4: 42 | Q4: =PRODUCT(O4/P4) -> 52.4 % | R4: 94 | S4: =PRODUCT(G4+J4+M4+P4) -> 193 | T4: =PRODUCT(R4/S4) -> 48.7 % | V4: 1990 | W4: 7. | X4: SiiPe | AB4: 23.
B5: **** | V5: ****
B6: 1993 | C6: 14. | D6: SiiPe | E6: 28 | F6: 44 | G6: 76 | H6: =PRODUCT(F6/G6) -> 57.9 % | I6: 69 | J6: 100 | K6: =PRODUCT(I6/J6) -> 69.0 % | L6: 36 | M6: 51 | N6: =PRODUCT(L6/M6) -> 70.6 % | O6: 11 | P6: 23 | Q6: =PRODUCT(O6/P6) -> 47.8 % | R6: 160 | S6: =PRODUCT(G6+J6+M6+P6) -> 250 | T6: 64.0 % | V6: 1993 | W6: 14. | X6: SiiPe | Z6: 11. | AC6: 19.
B7: 1994 | V7: 1994
B8: 1995 | C8: 9. | D8: SiiPe | E8: 29 | F8: 19 | G8: 41 | H8: =PRODUCT(F8/G8) -> 46.3 % | I8: 45 | J8: 67 | K8: =PRODUCT(I8/J8) -> 67.2 % | L8: 47 | M8: 62 | N8: =PRODUCT(L8/M8) -> 75.8 % | O8: 5 | P8: 17 | Q8: =PRODUCT(O8/P8) -> 29.4 % | R8: 116 | S8: =PRODUCT(G8+J8+M8+P8) -> 187 | T8: 62.0 % | V8: 1995 | W8: 9. | X8: SiiPe | Z8: 23. | AA8: 21.
B9: 1996 | V9: 1996
B10: 1997 | C10: 8. | D10: SiiPe | E10: 28 | F10: 16 | G10: 55 | H10: =PRODUCT(F10/G10) -> 29.1 % | I10: 26 | J10: 59 | K10: =PRODUCT(I10/J10) -> 44.1 % | L10: 9 | M10: 20 | N10: =PRODUCT(L10/M10) -> 45.0 % | O10: 9 | P10: 30 | Q10: =PRODUCT(O10/P10) -> 30.0 % | R10: 60 | S10: =PRODUCT(G10+J10+M10+P10) -> 164 | T10: 36.6 % | V10: 1997 | W10: 8. | X10: SiiPe
B11: Yhteensä | E11: =SUM(E4:E10) -> 111 | F11: =SUM(F4:F10) -> 97 | G11: =SUM(G4:G10) -> 222 | H11: =PRODUCT(F11/G11) -> 43.7 % | I11: =SUM(I4:I10) -> 170 | J11: =SUM(J4:J10) -> 285 | K11: =PRODUCT(I11/J11) -> 59.6 % | L11: =SUM(L4:L10) -> 116 | M11: =SUM(M4:M10) -> 175 | N11: =PRODUCT(L11/M11) -> 66.3 % | O11: =SUM(O4:O10) -> 47 | P11: =SUM(P4:P10) -> 112 | Q11: =PRODUCT(O11/P11) -> 42.0 % | R11: =SUM(R4:R10) -> 430 | S11: =SUM(S4:S10) -> 794 | T11: =PRODUCT(R11/S11) -> 54.2 %
B13: KÄRKILYÖNNIT YLEMMISSÄ PUDOTUSPELEISSÄ | V13: VUOSITTAISET SIJOITUKSET TOP - 30
G14: 0 > 1 | J14: 1 > 2 | M14: 2 > 3 | P14: 3 > k | S14: Yhteensä
B15: Vuosi | C15: Sija | D15: Seura | E15: OTT | F15: KL | G15: YHT | H15: % | I15: KL | J15: YHT | K15: % | L15: KL | M15: YHT | N15: % | O15: KL | P15: YHT | Q15: % | R15: KL | S15: YHT | T15: % | V15: Vuosi | W15: Sija | X15: Seura | Y15: 0 > 1 | Z15: 1 > 2 | AA15: 2 > 3 | AB15: 3 > k | AC15: KL
B16: 1990 | C16: 8. | D16: SiiPe | E16: 3 | F16: 4 | G16: 7 | H16: 57.1 % | I16: 1 | J16: 5 | K16: 20.0 % | L16: 4 | M16: 7 | N16: 57.1 % | O16: 7 | P16: 9 | Q16: 77.8 % | R16: 16 | S16: 28 | T16: 57.1 % | V16: 1990 | W16: 8. | X16: SiiPe | AB16: 9.
B17: ****
B18: 1997 | C18: 8. | D18: SiiPe | E18: 3 | F18: 1 | G18: 5 | H18: 20.0 % | I18: 3 | J18: 5 | K18: 60.0 % | L18: 2 | M18: 4 | N18: 50.0 % | O18: 0 | P18: 1 | Q18: 0.0 % | R18: 6 | S18: 15 | T18: 40.0 % | V18: 1990 | W18: 8. | X18: SiiPe
B19: Yhteensä | E19: =SUM(E16:E18) -> 6 | F19: =SUM(F16:F18) -> 5 | G19: 12 | H19: =PRODUCT(F19/G19) -> 41.7 % | I19: =SUM(I16:I18) -> 4 | J19: =SUM(J16:J18) -> 10 | K19: =PRODUCT(I19/J19) -> 40.0 % | L19: =SUM(L16:L18) -> 6 | M19: =SUM(M16:M18) -> 11 | N19: =PRODUCT(L19/M19) -> 54.5 % | O19: =SUM(O16:O18) -> 7 | P19: =SUM(P16:P18) -> 10 | Q19: =PRODUCT(O19/P19) -> 70.0 % | R19: =SUM(R16:R18) -> 22 | S19: =SUM(S16:S18) -> 43 | T19: =PRODUCT(R19/S19) -> 51.2 %
B21: KÄRKILYÖNNIT
G22: 0 > 1 | J22: 1 > 2 | M22: 2 > 3 | P22: 3 > k | S22: Yhteensä
E23: OTT | F23: KL | G23: YHT | H23: % | I23: KL | J23: YHT | K23: % | L23: KL | M23: YHT | N23: % | O23: KL | P23: YHT | Q23: % | R23: KL | S23: YHT | T23: %
B24: RUNKOSARJA | E24: =PRODUCT(E11) -> 111 | F24: =PRODUCT(F11) -> 97 | G24: =PRODUCT(G11) -> 222 | H24: =PRODUCT(H11) -> 43.7 % | I24: =PRODUCT(I11) -> 170 | J24: =PRODUCT(J11) -> 285 | K24: =PRODUCT(K11) -> 59.6 % | L24: =PRODUCT(L11) -> 116 | M24: =PRODUCT(M11) -> 175 | N24: =PRODUCT(N11) -> 66.3 % | O24: =PRODUCT(O11) -> 47 | P24: =PRODUCT(P11) -> 112 | Q24: =PRODUCT(Q11) -> 42.0 % | R24: =PRODUCT(R11) -> 430 | S24: =PRODUCT(S11) -> 794 | T24: =PRODUCT(T11) -> 54.2 %
B25: PLAY OFF | E25: =PRODUCT(E19) -> 6 | F25: =PRODUCT(F19) -> 5 | G25: 12 | H25: 41.7 % | I25: 4 | J25: 10 | K25: 40.0 % | L25: 6 | M25: 11 | N25: 54.5 % | O25: 7 | P25: 10 | Q25: 70.0 % | R25: 22 | S25: 43 | T25: 51.2 %
